Workbook

Sheet Data1
C2: 2020-02-01 | D2: 2020-03-01 | E2: 2020-04-01 | F2: 2020-05-01 | G2: 2020-06-01 | H2: 2020-07-01 | I2: 2020-08-01 | J2: 2020-09-01
B3: 5th | C3: =C14 -> 2.156206965 | D3: =D14 -> 2.351046758 | E3: 5 | F3: 4.3 | G3: 4 | H3: 3.7 | I3: 3.2 | J3: 2.7
B4: 10th | C4: =C15-C14 -> 0.2373587746 | D4: 0.2619121353 | E4: 1.4 | F4: 1.28 | G4: 0.8 | H4: 0.7 | I4: 0.6 | J4: 0.5
B5: 25th | C5: =C16-C14 -> 0.6920575068 | D5: =D16-D14 -> 0.8288503989 | E5: 3.9 | F5: 3.4 | G5: 2.2 | H5: 2.1 | I5: 1.8 | J5: 1.6
B6: 50th | C6: =C20-C16 -> 0.6843223378 | D6: =D20-D16 -> 0.9261824747 | E6: 2.9 | F6: 2.3 | G6: 1.9 | H6: 1.6 | I6: 1.4 | J6: 1.4
B7: 50th | C7: 0.2 | D7: 0.2 | E7: 0.2 | F7: 0.2 | G7: 0.2 | H7: 0.2 | I7: 0.2 | J7: 0.2 | K7: <--width of median line | O7: =SUM(C3,C5,C8,C9) -> 7.085048585 | P7: =SUM(D3,D5,D8,D9) -> 7.860672862 | Q7: =SUM(E3,E5,E8,E9) -> 21.8 | R7: 17.31 | S7: 14.3 | T7: 13.4 | U7: 11
B8: 75th | C8: =C17-C16 -> 1.705433389 | D8: =D17-D16 -> 2.11531273 | E8: 6.5 | F8: 4.9 | G8: 4 | H8: 3.7 | I8: 3.1 | J8: 3
B9: 95th | C9: =C19-C17 -> 2.531350725 | D9: =D19-D17 -> 2.565462975 | E9: 6.4 | F9: 4.71 | G9: 4.1 | H9: 3.9 | I9: 2.9 | J9: 3.1
B13: original percentiles
B14: 0.05 | C14: 2.156206965 | D14: 2.351046758 | E14: 5 | F14: 4.3 | G14: 4 | H14: 3.7 | I14: 3.2 | J14: 2.7
B15: 0.1 | C15: 2.39356574 | D15: 2.612958893 | E15: 6.4 | F15: 5.58 | G15: 4.8 | H15: 4.4 | I15: 3.8 | J15: 3.2
B16: 0.25 | C16: 2.848264472 | D16: 3.179897157 | E16: 8.9 | F16: 7.7 | G16: 6.2 | H16: 5.8 | I16: 5 | J16: 4.3
B17: 0.75 | C17: 4.553697861 | D17: 5.295209887 | E17: 15.4 | F17: 12.6 | G17: 10.2 | H17: 9.5 | I17: 8.1 | J17: 7.3
B18: 0.9 | C18: 5.795153538 | D18: 6.676999781 | E18: 18.8 | F18: 15.3 | G18: 12.7 | H18: 11.8 | I18: 9.9 | J18: 9.1
B19: 0.95 | C19: 7.085048585 | D19: 7.860672862 | E19: 21.8 | F19: 17.31 | G19: 14.3 | H19: 13.4 | I19: 11 | J19: 10.4
B20: 0.5 | C20: 3.53258681 | D20: 4.106079631 | E20: 11.8 | F20: 10 | G20: 8.1 | H20: 7.4 | I20: 6.4 | J20: 5.7
